fUSD/lending_fUSD_20240915
["ID","MTS","AMOUNT","RATE_DAILY","PERIOD"]
[338209677,1726386656754,-1921.61,0.00013332,2]
[338209678,1726386656763,-1745.7,0.00013332,2]
[338209679,1726386656772,-500.0,0.00013332,2]
[338209680,1726386656782,-1048.03,0.00013332,2]
[338209681,1726386656791,-337.20136122,0.00013332,2]
[338209682,1726386656802,-500.0,0.00013332,2]
[338209683,1726386656811,-809.48,0.00013332,2]
[338209684,1726386656822,-642.2,0.00013332,2]
[338209685,1726386656832,-1530.88,0.00013332,2]
[338209686,1726386656841,-1722.16,0.00013332,2]
[338209687,1726386656852,-500.0,0.00013332,2]
[338209688,1726386656863,-707.09,0.00013332,2]
[338209689,1726386656872,-1141.18,0.00013332,2]
[338209690,1726386656881,-500.0,0.00013332,2]
[338209691,1726386656890,-500.0,0.00013332,2]
[338209692,1726386656899,-1303.63,0.00013332,2]
[338209693,1726386656908,-500.0,0.00013332,2]
[338209694,1726386656917,-1272.51,0.00013332,2]
[338209695,1726386656926,-1822.8,0.00013332,2]
[338209696,1726386656936,-500.0,0.00013332,2]
[338209697,1726386656945,-500.0,0.00013332,2]
[338209698,1726386656954,-2551.42,0.00013332,2]
[338209699,1726386656963,-500.0,0.00013332,2]
[338209700,1726386656972,-500.0,0.00013332,2]
[338209701,1726386656982,-1331.23,0.00013332,2]
[338209702,1726386656991,-2407.69,0.00013332,2]
[338209703,1726386657000,-500.0,0.00013332,2]
[338209704,1726386657009,-585.16,0.00013332,2]
[338209705,1726386657018,-819.66,0.00013332,2]
[338209706,1726386657027,-923.56,0.00013332,2]
[338209707,1726386657036,-500.0,0.00013332,2]
[338209708,1726386657045,-3739.75,0.00013332,2]
[338209709,1726386657054,-645.21,0.00013332,2]
[338209710,1726386657064,-500.0,0.00013332,2]
[338209711,1726386657073,-500.0,0.00013332,2]
[338209712,1726386657082,-500.0,0.00013332,2]
[338209713,1726386657091,-310.94137194,0.00013332,2]
[338209714,1726386657100,-1112.04,0.00013332,2]
[338209715,1726386657109,-593.76,0.00013332,2]
[338209716,1726386657119,-500.0,0.00013332,2]
[338209717,1726386657128,-1679.43,0.00013332,2]
[338209718,1726386657137,-1331.71,0.00013332,2]
[338209719,1726386657146,-1682.35,0.00013332,2]
[338209720,1726386657155,-1081.85,0.00013332,2]
[338209721,1726386657164,-500.0,0.00013332,2]
[338209722,1726386657174,-1202.52,0.00013332,2]
[338209723,1726386657183,-500.0,0.00013332,2]
[338209724,1726386657195,-896.4,0.00013332,2]
[338209725,1726386657204,-500.0,0.00013332,2]
[338209726,1726386657214,-820.29,0.00013332,2]
[338209727,1726386657223,-500.0,0.00013332,2]
[338209728,1726386657232,-500.0,0.00013332,2]
[338209729,1726386657242,-1736.63,0.00013332,2]
[338209730,1726386657251,-500.0,0.00013332,2]
[338209731,1726386657260,-1646.47,0.00013332,2]
[338209732,1726386657269,-500.0,0.00013332,2]
[338209733,1726386657279,-1277.04,0.00013332,2]
[338209734,1726386657288,-500.0,0.00013332,2]
[338209735,1726386657297,-1253.7,0.00013332,2]
[338209736,1726386657307,-1552.97,0.00013332,2]
[338209737,1726386657316,-500.0,0.00013332,2]
[338209738,1726386657325,-875.0,0.00013332,2]
[338209739,1726386657334,-1193.43,0.00013332,2]
[338209740,1726386657344,-500.0,0.00013332,2]
[338209741,1726386657353,-655.93,0.00013332,2]
[338209742,1726386657363,-665.56,0.00013332,2]
[338209743,1726386657372,-740.38,0.00013332,2]
[338209744,1726386657381,-500.0,0.00013332,2]
[338209745,1726386657390,-824.47,0.00013332,2]
[338209746,1726386657400,-702.34,0.00013332,2]
[338209747,1726386657409,-500.0,0.00013332,2]
[338209748,1726386657418,-591.05,0.00013332,2]
[338209749,1726386657427,-1735.51,0.00013332,2]
[338209750,1726386657437,-500.0,0.00013332,2]
[338209751,1726386657446,-3203.15,0.00013332,2]
[338209752,1726386657456,-1729.91,0.00013332,2]
[338209753,1726386657465,-573.4,0.00013332,2]
[338209754,1726386657476,-500.0,0.00013332,2]
[338209755,1726386657486,-500.0,0.00013332,2]
[338209756,1726386657495,-1659.93,0.00013332,2]
[338209757,1726386657504,-500.0,0.00013332,2]
[338209758,1726386657515,-636.82,0.00013332,2]
[338209759,1726386657526,-557.85,0.00013332,2]
[338209760,1726386657536,-1330.31,0.00013332,2]
[338209761,1726386657545,-1288.74,0.00013332,2]
[338209762,1726386657554,-500.0,0.00013332,2]
[338209763,1726386657564,-2152.07,0.00013332,2]
[338209764,1726386657576,-746.29,0.00013332,2]
[338209765,1726386657585,-500.0,0.00013332,2]
[338209766,1726386657594,-719.82,0.00013332,2]
[338209767,1726386657603,-500.0,0.00013332,2]
[338209768,1726386657611,-500.0,0.00013332,2]
[338209769,1726386657621,-38355.61,0.00013332,2]
[338209770,1726386657631,-1048.89,0.00013332,2]
[338209771,1726386657640,-3992.45,0.00013332,2]
[338209772,1726386657649,-500.0,0.00013332,2]
[338209773,1726386657659,-777.89,0.00013332,2]
[338209774,1726386657668,-1857.01,0.00013332,2]
[338209775,1726386657678,-500.0,0.00013332,2]
[338209776,1726386657687,-721.79,0.00013332,2]
[338209777,1726386657697,-500.0,0.00013332,2]
[338209778,1726386657706,-1741.68,0.00013332,2]
[338209779,1726386657715,-1450.58,0.00013332,2]
[338209780,1726386657724,-1817.29,0.00013332,2]
[338209781,1726386657733,-529.93,0.00013332,2]
[338209782,1726386657742,-1382.77,0.00013332,2]
[338209783,1726386657751,-500.0,0.00013332,2]
[338209784,1726386657760,-522.77,0.00013332,2]
[338209785,1726386657770,-2904.12,0.00013332,2]
[338209786,1726386657779,-500.0,0.00013332,2]
[338209787,1726386657787,-772.62,0.00013332,2]
[338209788,1726386657797,-500.0,0.00013332,2]
[338209789,1726386657807,-872.52,0.00013332,2]
[338209790,1726386657816,-1830.5,0.00013332,2]
[338209791,1726386657825,-655.06,0.00013332,2]
[338209792,1726386657834,-744.46,0.00013332,2]
[338209793,1726386657844,-694.99,0.00013332,2]
[338209794,1726386657853,-1096.99,0.00013332,2]
[338209795,1726386657862,-760.02,0.00013332,2]
[338209796,1726386657871,-500.0,0.00013332,2]
[338209797,1726386657880,-651.42,0.00013332,2]
[338209798,1726386657889,-906.05,0.00013332,2]
[338209799,1726386657898,-1788.79,0.00013332,2]
[338209800,1726386657907,-500.0,0.00013332,2]
[338209801,1726386657917,-500.0,0.00013332,2]
[338209802,1726386657926,-519.58,0.00013332,2]
[338209803,1726386657936,-500.0,0.00013332,2]
[338209804,1726386657945,-668.39,0.00013332,2]
[338209805,1726386657954,-1669.84,0.00013332,2]
[338209806,1726386657963,-197.06236067,0.00013332,2]
[338209807,1726386657973,-500.0,0.00013332,2]
[338209808,1726386657986,-991.26,0.00013332,2]
[338209809,1726386657998,-825.92,0.00013332,2]
[338209810,1726386658009,-2051.03,0.00013332,2]
[338209811,1726386658020,-805.04,0.00013332,2]
[338209812,1726386658031,-2617.08,0.00013332,2]
[338209813,1726386658040,-4635.5,0.00013332,2]
[338209814,1726386658050,-500.0,0.00013332,2]
[338209815,1726386658061,-1635.85,0.00013332,2]
[338209816,1726386658071,-1880.08,0.00013332,2]
[338209817,1726386658080,-1646.13,0.00013332,2]
[338209818,1726386658089,-500.0,0.00013332,2]
[338209819,1726386658098,-574.03,0.00013332,2]
[338209820,1726386658107,-535.64,0.00013332,2]
[338209821,1726386658117,-759.97,0.00013332,2]
[338209822,1726386658127,-500.0,0.00013332,2]
[338209823,1726386658138,-500.0,0.00013332,2]
[338209824,1726386658148,-1910.72,0.00013332,2]
[338209825,1726386658158,-500.0,0.00013332,2]
[338209826,1726386658167,-830.47,0.00013332,2]
[338209827,1726386658177,-500.0,0.00013332,2]
[338209828,1726386658186,-540.36,0.00013332,2]
[338209829,1726386658197,-845.48,0.00013332,2]
[338209830,1726386658207,-790.72,0.00013332,2]
[338209831,1726386658216,-500.0,0.00013332,2]
[338209832,1726386658226,-500.0,0.00013332,2]
[338209833,1726386658235,-615.12,0.00013332,2]
[338209834,1726386658244,-1339.68,0.00013332,2]
[338209835,1726386658254,-732.76,0.00013332,2]
[338209836,1726386658264,-500.0,0.00013332,2]
[338209837,1726386658273,-2517.19,0.00013332,2]
[338209838,1726386658283,-500.0,0.00013332,2]
[338209839,1726386658292,-1116.19,0.00013332,2]
[338209840,1726386658301,-1753.92,0.00013332,2]
[338209841,1726386658311,-3262.83,0.00013332,2]
[338209842,1726386658321,-500.0,0.00013332,2]
[338209843,1726386658330,-2139.07,0.00013332,2]
[338209844,1726386658339,-295.46326168,0.00013333,2]
[338209845,1726386658349,-500.0,0.00013333,2]
[338209846,1726386658358,-500.0,0.00013333,2]
[338209847,1726386658367,-561.59232437,0.00013333,2]
[338209848,1726386658377,-500.0,0.00013333,2]
[338209849,1726386658386,-500.0,0.00013333,2]
[338209850,1726386658396,-291.6534953,0.00013333,2]
[338209851,1726386658405,-519.11141484,0.00013333,2]
[338209852,1726386658415,-500.0,0.00013333,2]
[338209853,1726386658424,-986.14,0.00013333,2]
[338209854,1726386658434,-500.0,0.00013333,2]
[338209855,1726386658449,-1104.91,0.00013333,2]
[338209856,1726386658458,-603.64,0.00013333,2]
[338209857,1726386658468,-1291.31,0.00013333,2]
[338209858,1726386658478,-1489.25,0.00013333,2]
[338209859,1726386658487,-1214.79,0.00013333,2]
[338209860,1726386658496,-644.7,0.00013333,2]
[338209861,1726386658505,-734.64,0.00013333,2]
[338209862,1726386658515,-604.37,0.00013333,2]
[338209863,1726386658524,-1322.72,0.00013333,2]
[338209864,1726386658534,-500.0,0.00013333,2]
[338209865,1726386658543,-706.96,0.00013333,2]
[338209866,1726386658552,-819.4,0.00013333,2]
[338209867,1726386658561,-1793.07,0.00013333,2]
[338209868,1726386658575,-2382.64,0.00013333,2]
[338209869,1726386658584,-500.0,0.00013333,2]
[338209870,1726386658593,-559.68,0.00013333,2]
[338209871,1726386658603,-2812.38,0.00013333,2]
[338209872,1726386658613,-1215.38,0.00013333,2]
[338209873,1726386658622,-886.59,0.00013333,2]
[338209874,1726386658631,-1390.11,0.00013333,2]
[338209875,1726386658641,-1865.48,0.00013333,2]
[338209876,1726386658650,-1240.08,0.00013333,2]
[338209877,1726386658660,-1091.54,0.00013333,2]
[338209878,1726386658669,-986.87,0.00013333,2]
[338209879,1726386658678,-618.57,0.00013333,2]
[338209880,1726386658689,-532.18,0.00013333,2]
[338209881,1726386658698,-2204.89,0.00013333,2]
[338209882,1726386658708,-500.0,0.00013333,2]
[338209883,1726386658717,-1196.34,0.00013333,2]
[338209884,1726386658727,-1877.34,0.00013333,2]
[338209885,1726386658736,-1544.19,0.00013333,2]
[338209886,1726386658933,-1642.31,0.00013333,2]
[338209887,1726386658944,-500.0,0.00013333,2]
[338209888,1726386658954,-2122.82,0.00013333,2]
[338209889,1726386658963,-500.0,0.00013333,2]
[338209890,1726386658972,-1235.92,0.00013333,2]
[338209891,1726386658981,-500.0,0.00013333,2]
[338209892,1726386658990,-1744.99,0.00013333,2]
[338209893,1726386659000,-500.0,0.00013333,2]
[338209894,1726386659009,-2206.82,0.00013333,2]
[338209895,1726386659018,-2524.23,0.00013333,2]
[338209896,1726386659027,-500.0,0.00013333,2]
[338209897,1726386659036,-500.0,0.00013333,2]
[338209898,1726386659046,-2100.75,0.00013333,2]
[338209899,1726386659055,-2501.11,0.00013333,2]
[338209900,1726386659064,-846.95,0.00013333,2]
[338209901,1726386659073,-539.57,0.00013333,2]
[338209902,1726386659082,-1470.93,0.00013333,2]
[338209903,1726386659092,-3358.33,0.00013333,2]
[338209904,1726386659102,-561.13,0.00013334,2]
[338209905,1726386659112,-2011.23,0.00013334,2]
[338209906,1726386659121,-2475.01,0.00013334,2]
[338209907,1726386659130,-500.0,0.00013334,2]
[338209908,1726386659140,-677.73,0.00013334,2]
[338209909,1726386659151,-1367.57,0.00013334,2]
[338209910,1726386659160,-1772.7,0.00013334,2]
[338209911,1726386659170,-1342.24,0.00013334,2]
[338209912,1726386659179,-613.39,0.00013334,2]
[338209913,1726386659189,-3121.53,0.00013334,2]
[338209914,1726386659200,-532.52,0.0001337,2]
[338209915,1726386659209,-279.99,0.0001337,2]
[338209916,1726386659218,-150.0,0.0001337,2]
[338209917,1726386659228,-150.0,0.0001337,2]
[338209918,1726386659238,-150.0,0.0001337,2]
[338209919,1726386659247,-150.0,0.0001337,2]
[338209920,1726386659256,-150.0,0.0001337,2]
[338209921,1726386659266,-300.0,0.0001337,2]
[338209922,1726386659275,-150.0,0.0001337,2]
[338209923,1726386659285,-150.0,0.0001337,2]
[338209924,1726386659294,-150.0,0.0001337,2]
[338209925,1726386659303,-150.0,0.0001337,2]
[338209926,1726386659313,-150.0,0.0001337,2]
[338209927,1726386659322,-150.0,0.0001337,2]
[338209928,1726386659331,-150.0,0.0001337,2]
[338209929,1726386659341,-150.0,0.0001337,2]
[338209930,1726386659350,-150.0,0.0001337,2]
[338209931,1726386659359,-301.21,0.0001337,2]
[338209932,1726386659369,-150.0,0.0001337,2]
[338209933,1726386659378,-150.0,0.0001337,2]
[338209934,1726386659388,-150.0,0.0001337,2]
[338209935,1726386659411,-150.0,0.0001337,2]
[338209936,1726386659421,-150.0,0.0001337,2]
[338209937,1726386659430,-150.0,0.0001337,2]
[338209938,1726386659442,-150.0,0.0001337,2]
[338209939,1726386659458,-150.0,0.0001337,2]
[338209940,1726386659468,-150.0,0.0001337,2]
[338209941,1726386659478,-150.0,0.0001337,2]
[338209942,1726386659487,-304.57,0.0001337,2]
[338209943,1726386659496,-150.0,0.0001337,2]
[338209944,1726386659506,-150.0,0.0001337,2]
[338209945,1726386659515,-150.0,0.0001337,2]
[338209946,1726386659524,-150.0,0.0001337,2]
[338209947,1726386659534,-201.38909919,0.00013373,2]
[338209948,1726386659543,-500.0,0.00013373,2]
[338209949,1726386659552,-374.99975323,0.00013387,2]
[338209950,1726386659561,-500.0,0.00013424,2]
[338209951,1726386659572,-500.0,0.00013424,2]
[338209952,1726386659582,-500.0,0.00013424,2]
[338209953,1726386659592,-690.64167,0.0001343,2]
[338209954,1726386659601,-417.92894284,0.00013434,2]
[338209955,1726386659611,-561.98,0.00013434,2]
[338209956,1726386659621,-500.0,0.00013434,2]
[338209957,1726386659631,-500.0,0.00013434,2]
[338209958,1726386659641,-500.0,0.00013434,2]
[338209959,1726386659653,-1436.51,0.00013434,2]
[338209960,1726386659662,-500.0,0.00013434,2]
[338209961,1726386659672,-928.51,0.00013434,2]
[338209962,1726386659681,-842.4,0.00013434,2]
[338209963,1726386659694,-500.0,0.00013434,2]
[338209964,1726386659703,-1164.17,0.00013434,2]
[338209965,1726386659713,-645.17,0.00013434,2]
[338209966,1726386659722,-500.0,0.00013434,2]
[338209967,1726386659731,-639.18,0.00013434,2]
[338209968,1726386659741,-500.0,0.00013434,2]
[338209969,1726386659750,-591.77,0.00013434,2]
[338209970,1726386659759,-500.0,0.00013434,2]
[338209971,1726386659768,-602.89,0.00013434,2]
[338209972,1726386659778,-1098.11,0.00013434,2]
[338209973,1726386659787,-500.0,0.00013434,2]
[338209974,1726386659796,-715.1,0.00013434,2]
[338209975,1726386659806,-952.96,0.00013434,2]
[338209976,1726386659815,-1104.7,0.00013434,2]
[338209977,1726386659824,-621.97,0.00013434,2]
[338209978,1726386659833,-562.73,0.00013434,2]
[338209979,1726386659843,-500.0,0.00013434,2]
[338209980,1726386659852,-708.31,0.00013434,2]
[338209981,1726386659863,-665.16,0.00013434,2]
[338209982,1726386659872,-500.0,0.00013434,2]
[338209983,1726386659881,-500.0,0.00013434,2]
[338209984,1726386659891,-500.0,0.00013434,2]
[338209985,1726386659900,-500.0,0.00013434,2]
[338209986,1726386659909,-500.0,0.00013434,2]
[338209987,1726386659919,-1124.15,0.00013434,2]
[338209988,1726386659929,-1571.64,0.00013434,2]
[338209989,1726386659941,-1574.41,0.00013434,2]
[338209990,1726386659950,-600.39,0.00013434,2]
[338209991,1726386659960,-500.0,0.00013434,2]
[338209992,1726386659969,-708.84,0.00013434,2]
[338209993,1726386659979,-720.71,0.00013434,2]
[338209994,1726386659988,-500.0,0.00013434,2]
[338209995,1726386659997,-500.0,0.00013434,2]
[338209996,1726386660007,-500.0,0.00013434,2]
[338209997,1726386660016,-650.12,0.00013434,2]
[338209998,1726386660025,-500.0,0.00013434,2]
[338209999,1726386660034,-500.0,0.00013434,2]
[338210000,1726386660044,-500.0,0.00013434,2]
[338210001,1726386660054,-1249.23,0.00013434,2]
[338210002,1726386660063,-500.0,0.00013434,2]
[338210003,1726386660072,-500.0,0.00013434,2]
[338210004,1726386660082,-500.0,0.00013434,2]
[338210005,1726386660091,-708.48,0.00013434,2]
[338210006,1726386660102,-802.37,0.00013434,2]
[338210007,1726386660112,-639.47,0.00013434,2]
[338210008,1726386660121,-556.09,0.00013434,2]
[338210009,1726386660132,-500.0,0.00013434,2]
[338210010,1726386660142,-500.0,0.00013434,2]
[338210011,1726386660151,-527.26,0.00013434,2]
[338210012,1726386660161,-500.0,0.00013434,2]
[338210013,1726386660171,-1066.93,0.00013434,2]
[338210014,1726386660181,-646.44,0.00013434,2]
[338210015,1726386660191,-1656.57,0.00013434,2]
[338210016,1726386660201,-763.97,0.00013434,2]
[338210017,1726386660211,-1411.55,0.00013434,2]
[338210018,1726386660220,-500.0,0.00013434,2]
[338210019,1726386660230,-500.0,0.00013434,2]
[338210020,1726386660239,-500.0,0.00013434,2]
[338210021,1726386660249,-550.13,0.00013434,2]
[338210022,1726386660258,-500.0,0.00013434,2]
[338210023,1726386660267,-500.0,0.00013434,2]
[338210024,1726386660277,-546.41,0.00013434,2]
[338210025,1726386660287,-500.0,0.00013434,2]
[338210026,1726386660296,-500.0,0.00013434,2]
[338210027,1726386660306,-1742.19,0.00013434,2]
[338210028,1726386660315,-500.0,0.00013434,2]
[338210029,1726386660325,-563.77,0.00013434,2]
[338210030,1726386660334,-500.0,0.00013434,2]
[338210031,1726386660344,-500.0,0.00013434,2]
[338210032,1726386660354,-500.0,0.00013434,2]
[338210033,1726386660364,-500.0,0.00013434,2]
[338210034,1726386660373,-500.0,0.00013434,2]
[338210035,1726386660383,-500.0,0.00013434,2]
[338210036,1726386660392,-500.0,0.00013434,2]
[338210037,1726386660402,-500.0,0.00013434,2]
[338210038,1726386660411,-574.37,0.00013434,2]
[338210039,1726386660421,-1322.16,0.00013434,2]
[338210040,1726386660430,-1524.68,0.00013434,2]
[338210041,1726386660439,-722.53,0.00013434,2]
[338210042,1726386660449,-1451.07,0.00013434,2]
[338210043,1726386660458,-724.0,0.00013434,2]
[338210044,1726386660468,-1263.3,0.00013434,2]
[338210045,1726386660477,-500.0,0.00013434,2]
[338210046,1726386660487,-831.32,0.00013434,2]
[338210047,1726386660496,-500.0,0.00013434,2]
[338210048,1726386660505,-1412.73,0.00013434,2]
[338210049,1726386660515,-535.97,0.00013434,2]
[338210050,1726386660525,-762.35,0.00013434,2]
[338210051,1726386660534,-592.82,0.00013434,2]
[338210052,1726386660543,-500.0,0.00013434,2]
[338210053,1726386660553,-150.0,0.00013434,2]
[338210054,1726386660562,-500.0,0.00013434,2]
[338210055,1726386660573,-1356.7,0.00013434,2]
[338210056,1726386660582,-698.9,0.00013434,2]
[338210057,1726386660592,-1023.51,0.00013434,2]
[338210058,1726386660601,-500.0,0.00013434,2]
[338210059,1726386660610,-654.13,0.00013434,2]
[338210060,1726386660619,-500.0,0.00013434,2]
[338210061,1726386660628,-500.0,0.00013434,2]
[338210062,1726386660637,-500.0,0.00013434,2]
[338210063,1726386660647,-805.52,0.00013434,2]
[338210064,1726386660656,-500.0,0.00013434,2]
[338210065,1726386660665,-500.0,0.00013434,2]
[338210066,1726386660675,-545.85,0.00013434,2]
[338210067,1726386660684,-500.0,0.00013434,2]
[338210068,1726386660694,-995.8,0.00013434,2]
[338210069,1726386660704,-1242.26,0.00013434,2]
[338210070,1726386660713,-205.108,0.0001347,2]
[338210071,1726386660723,-690.64166,0.0001347,2]
[338210072,1726386660732,-1530.95158959,0.00013493,2]
[338210073,1726386660742,-690.64167,0.000135,2]
[338210074,1726386660751,-200.0,0.00013513,2]
[338210075,1726386660760,-488.52,0.00013532,2]
[338210076,1726386660770,-851.758,0.00013533,2]
[338210077,1726386660779,-1261.0,0.00013533,2]
[338210078,1726386660788,-442.649,0.00013533,2]
[338210079,1726386660798,-624.0,0.00013533,2]
[338210080,1726386660807,-811.0,0.00013533,2]
[338210081,1726386660816,-558.0,0.00013533,2]
[338210082,1726386660826,-932.0,0.00013533,2]
[338210083,1726386660835,-1902.0,0.00013533,2]
[338210084,1726386660845,-553.0,0.00013533,2]
[338210085,1726386660854,-3345.0,0.00013533,2]
[338210086,1726386660863,-248.0,0.00013533,2]
[338210087,1726386660873,-806.0,0.00013533,2]
[338210088,1726386660882,-1124.0,0.00013533,2]
[338210089,1726386660891,-150.0,0.00013533,2]
[338210090,1726386660900,-150.0,0.00013533,2]
[338210091,1726386660909,-4171.467,0.00013533,2]
[338210092,1726386660918,-1859.58,0.00013534,2]
[338210093,1726386660928,-1143.63,0.00013534,2]
[338210094,1726386660937,-3037.41,0.00013534,2]
[338210095,1726386660946,-2304.04,0.00013534,2]
[338210096,1726386660955,-3196.08,0.00013534,2]
[338210097,1726386660964,-752.52,0.00013534,2]
[338210098,1726386660974,-500.0,0.00013534,2]
[338210099,1726386660983,-5529.83,0.00013534,2]
[338210100,1726386660992,-22864.29,0.00013534,2]
[338210101,1726386661002,-4100.35,0.00013534,2]
[338210102,1726386661011,-535.73,0.00013534,2]
[338210103,1726386661021,-9326.93,0.00013534,2]
[338210104,1726386661030,-1699.66,0.00013534,2]
[338210105,1726386661039,-818.44,0.00013534,2]
[338210106,1726386661049,-2372.87,0.00013534,2]
[338210107,1726386661059,-1736.72,0.00013534,2]
[338210108,1726386661068,-3142.64,0.00013534,2]
[338210109,1726386661077,-2320.73,0.00013534,2]
[338210110,1726386661086,-690.64166,0.00013535,2]
[338210111,1726386661095,-690.64167,0.00013535,2]
[338210112,1726386661105,-690.64167,0.0001354,2]
[338210113,1726386661115,-2100.0,0.000136,4]
[338210114,1726386661125,-2113.01,0.00013604,2]
[338210115,1726386661134,-2238.96,0.00013604,2]
[338210116,1726386661143,-2019.7,0.00013604,2]
[338210117,1726386661154,-586.83,0.00013604,2]
[338210118,1726386661164,-3124.91,0.00013604,2]
[338210119,1726386661173,-968.98,0.00013604,2]
[338210120,1726386661183,-2456.08,0.00013604,2]
[338210121,1726386661192,-1949.11,0.00013604,2]
[338210122,1726386661201,-1848.91,0.00013604,2]
[338210123,1726386661211,-7557.05,0.00013604,2]
[338210124,1726386661221,-3493.4,0.00013604,2]
[338210125,1726386661231,-2992.82,0.00013604,2]
[338210126,1726386661240,-1981.17,0.00013604,2]
[338210127,1726386661249,-2109.44,0.00013604,2]
[338210128,1726386661260,-1429.35,0.00013604,2]
[338210129,1726386661270,-1380.26,0.00013604,2]
[338210130,1726386661280,-807.33,0.00013604,2]
[338210131,1726386661289,-673.25,0.00013604,2]
[338210132,1726386661298,-1456.37,0.00013604,2]
[338210133,1726386661308,-927.79,0.00013604,2]
[338210134,1726386661318,-1084.0,0.00013604,2]
[338210135,1726386661327,-1156.39,0.00013604,2]
[338210136,1726386661336,-1829.98,0.00013605,2]
[338210137,1726386661346,-1618.9,0.00013605,2]
[338210138,1726386661356,-500.0,0.00013605,2]
[338210139,1726386661365,-2412.16,0.00013605,2]
[338210140,1726386661375,-902.27,0.00013605,2]
[338210141,1726386661384,-1114.81,0.00013605,2]
[338210142,1726386661394,-590.87,0.00013605,2]
[338210143,1726386661403,-1291.36,0.00013605,2]
[338210144,1726386661413,-1805.22,0.00013605,2]
[338210145,1726386661423,-3078.06,0.00013605,2]
[338210146,1726386661432,-1393.41,0.00013605,2]
[338210147,1726386661442,-619.5,0.00013605,2]
[338210148,1726386661451,-1836.24,0.00013605,2]
[338210149,1726386661461,-500.0,0.00013605,2]
[338210150,1726386661470,-1437.52,0.00013605,2]
[338210151,1726386661480,-748.26,0.00013605,2]
[338210152,1726386661489,-1080.77,0.00013605,2]
[338210153,1726386661499,-515.37,0.00013605,2]
[338210154,1726386661509,-752.33,0.00013605,2]
[338210155,1726386661519,-618.21,0.00013605,2]
[338210156,1726386661528,-579.73,0.00013605,2]
[338210157,1726386661538,-1002.53,0.00013605,2]
[338210158,1726386661547,-221.18,0.00013605,2]
[338210159,1726386661557,-515.5,0.00013605,2]
[338210160,1726386661567,-1779.54,0.00013605,2]
[338210161,1726386661579,-651.76,0.00013605,2]
[338210162,1726386661589,-1776.68,0.00013605,2]
[338210163,1726386661598,-500.0,0.00013605,2]
[338210164,1726386661607,-500.0,0.00013605,2]
[338210165,1726386661617,-2137.83,0.00013605,2]
[338210166,1726386661626,-2288.36,0.00013605,2]
[338210167,1726386661635,-1091.66,0.00013605,2]
[338210168,1726386661644,-1983.39,0.00013605,2]
[338210169,1726386661653,-500.0,0.00013605,2]
[338210170,1726386661663,-589.98,0.00013605,2]
[338210171,1726386661671,-500.0,0.00013605,2]
[338210172,1726386661681,-500.0,0.00013605,2]
[338210173,1726386661693,-646.3,0.00013605,2]
[338210174,1726386661706,-1741.77,0.00013605,2]
[338210175,1726386661716,-938.18,0.00013605,2]
[338210176,1726386661726,-528.66,0.00013605,2]